Workbook

Sheet Инструкция
E2: FORMA1.BUHG.2011
B4: Инструкция по заполнению шаблона "Бухгалтерский баланс"
C7: Технические требования: • макросы во время работы должны быть включены
C8: • на рабочем месте должен быть установлен MS Office 2007, 2010, 2013 с полной версией MS Excel
C9: • макросы во время работы должны быть включены
C10: • для корректной работы шаблона требуется выбрать низкий уровень безопасности ((В MS Excel 2007 после открытия файла шаблона нажать на кнопку «Параметры…» → «Предупреждение системы безопасности» → «Включить это содержимое» → «OK»)
D11: Цвета ячеек:
D12: ● | E12: Голубой – ячейки, обязательные для заполнения;
D13: ● | E13: Желтый – ячейки, предназначенные для заполнения;
D14: ● | E14: Зеленый – ячейки с формулами/константами или заполняемые автоматически (например, при выборе организации из реестра или выборе даты).
D16: Пояснение к заполнению (необходимо нажать один раз).
C18: Шаблон может быть сохранен на любом этапе заполнения!
C19: • При сохранении шаблона осуществляется проверка на наличие и корректность (например, КПП – 9 цифр) обязательных параметров на листах.
C20: • Если какая-то ячейка не удовлетворяет условию проверки, на лист «Проверка» добавляется гиперссылка на данную ячейку и причина, по которой шаблон не будет загружен в хранилище данных.
C21: • В колонке «Статус ошибки» для каждого сообщения возможны 2 значения: ошибка и предупреждение.
C22: • При наличии сообщений со статусом «Ошибка» шаблон будет отклонён системой, сообщения со статусом «Предупреждение» носят информационный характер, и такой шаблон будет принят системой.
C23: Организационно-технические консультации:
C24: ФИО:
C25: телефон:
C26: e-mail:
C27: WEB-сайт:
C28: Комментарий
C29: Дистрибутивы:
C30: Дистрибутивы (ссылка):
C32: Консультации по методологии заполнения форм:
C33: ФИО:
C34: телефон:
C35: e-mail:
C36: WEB-сайт:
C37: Комментарий
B40: Список сокращений
C43: Сокращение | E43: Расшифровка | F43: Данные
C44: 1 | E44: 2 | F44: 3
C45: ОКПО | E45: Общероссийский классификатор предприятий и организаций
C46: ОКВЭД | E46: Общероссийский классификатор видов экономической деятельности | F46: http://www.gmcgks.ru/new_page_96.htm
C47: ОКАТО | E47: Общероссийский классификатор объектов административно-территориального деления | F47: http://www.gmcgks.ru/new_page_87.htm
C48: ОКОГУ | E48: Общероссийский классификатор органов государственной власти и управления | F48: http://www.gmcgks.ru/new_page_77.htm
C49: ОКОПФ | E49: Общероссийский классификатор организационно-правовых форм | F49: http://www.gmcgks.ru/new_page_95.htm
C50: ОКФС | E50: Общероссийский классификатор форм собственности | F50: http://www.gmcgks.ru/new_page_94.htm
C51: ОКУД | E51: Общероссийский классификатор управленческой документации | F51: http://www.gmcgks.ru/new_page_80.htm
C52: ОКЕИ | E52: Общероссийский классификатор единиц измерения | F52: http://www.gmcgks.ru/new_page_83.htm
C53: ОКТМО | E53: Общероссийский классификатор территорий муниципальных образований | F53: http://www.gks.ru/metod/classifiers.html

Sheet Обновление (hidden)
O2: =version -> 0
C3: Инструкция по обновлению шаблона
C24: Если компьютер имеет подключение к Интернет, можно автоматически проверять наличие доступных обновлений. Выберите способ оповещения о наличии обновлений для шаблона:

Sheet Лог обновления (hidden)
A1: Дата/Время | B1: Сообщение | C1: Статус
A2: 3/8/2013 6:25:39 PM | B2: Проверка доступных обновлений... | C2: Информация
A3: 3/8/2013 6:25:40 PM | B3: Версия шаблона 2.2 актуальна, обновление не требуется | C3: Информация
A4: 11/3/2016 3:11:47 AM | B4: Проверка доступных обновлений... | C4: Информация
A5: 11/3/2016 3:11:49 AM | B5: Версия шаблона 2.2 актуальна, обновление не требуется | C5: Информация
A6: 11/3/2016 3:12:06 AM | B6: Проверка доступных обновлений... | C6: Информация
A7: 11/3/2016 3:12:07 AM | B7: Версия шаблона 2.2 актуальна, обновление не требуется | C7: Информация
A8: 11/9/2016 5:39:55 PM | B8: Проверка доступных обновлений... | C8: Информация
A9: 11/9/2016 5:39:56 PM | B9: Версия шаблона 2.2 актуальна, обновление не требуется | C9: Информация
A10: 11/11/2016 10:14:39 AM | B10: Проверка доступных обновлений... | C10: Информация
A11: 11/11/2016 10:14:40 AM | B11: Версия шаблона 2.2 актуальна, обновление не требуется | C11: Информация
A12: 11/11/2016 10:20:56 AM | B12: Проверка доступных обновлений... | C12: Информация
A13: 11/11/2016 10:20:57 AM | B13: Версия шаблона 2.2 актуальна, обновление не требуется | C13: Информация
A14: 11/11/2016 10:29:59 AM | B14: Проверка доступных обновлений... | C14: Информация
A15: 11/11/2016 10:30:00 AM | B15: Версия шаблона 2.2 актуальна, обновление не требуется | C15: Информация
A16: 11/14/2016 7:43:39 PM | B16: Проверка доступных обновлений... | C16: Информация
A17: 11/14/2016 7:43:40 PM | B17: Версия шаблона 2.2 актуальна, обновление не требуется | C17: Информация
A18: 11/15/2016 5:58:56 PM | B18: Проверка доступных обновлений... | C18: Информация
A19: 11/15/2016 5:58:57 PM | B19: Версия шаблона 2.2 актуальна, обновление не требуется | C19: Информация
A20: 11/17/2016 8:16:44 PM | B20: Проверка доступных обновлений... | C20: Информация
A21: 11/17/2016 8:16:45 PM | B21: Версия шаблона 2.2 актуальна, обновление не требуется | C21: Информация
A22: 12/16/2016 6:24:54 PM | B22: Проверка доступных обновлений... | C22: Информация
A23: 12/16/2016 6:24:55 PM | B23: Версия шаблона 2.2 актуальна, обновление не требуется | C23: Информация
A24: 12/16/2016 6:52:09 PM | B24: Проверка доступных обновлений... | C24: Информация
A25: 12/16/2016 6:52:10 PM | B25: Версия шаблона 2.2 актуальна, обновление не требуется | C25: Информация
A26: 3/29/2017 3:55:21 PM | B26: Проверка доступных обновлений... | C26: Информация
A27: 3/29/2017 3:55:22 PM | B27: Версия шаблона 2.2 актуальна, обновление не требуется | C27: Информация
A28: 4/19/2017 12:27:35 PM | B28: Проверка доступных обновлений... | C28: Информация
A29: 4/19/2017 12:27:36 PM | B29: Версия шаблона 2.2 актуальна, обновление не требуется | C29: Информация

Sheet Титульный
J1: 01.01.2016
B4: Бухгалтерский баланс
B6: Приложение к Приказу Минфина РФ от 02.07.2010 № 66н (в ред. Приказов Минфина России от 05.10.2011 №124н, от 17.08.2012 №113н, от 04.12.2012 №154н)
C8: Создать печатную форму
C9: Регион РФ | D9: Рязанская область
C11: Отчётный период
C12: Год | D12: 2016
C13: Квартал (с нарастающим итогом) | D13: год
C14: Отчётная дата | D14: 31.12.2016
C16: Признак филиала | D16: нет
H17: Форма №1 по ОКУД | I17: 0710001
H18: Дата (год,месяц,число) | I18: 31.12.2016
C19: Организация: | D19: МУНИЦИПАЛЬНОЕ ПРЕДПРИЯТИЕ "ВОДОКАНАЛ ГОРОДА РЯЗАНИ" | H19: Код* по ОКПО | I19: 03219667
C20: Наименование филиала:
C21: ИНН: | D21: 6227004811 | H21: Является ли организация субъектом малого предпринимательства | I21: нет
C22: КПП: | D22: 623401001 | H22: 2016 | I22: третьим или последующим отчетным годом
C23: Вид деятельности: | D23: Холодное водоснабжение; Водоотведение | H23: Код* по ОКВЭД | I23: 41.00.2
C24: Организационно-правовая форма/форма собственности: | D24: МУНИЦИПАЛЬНОЕ ПРЕДПРИЯТИЕ "ВОДОКАНАЛ ГОРОДА РЯЗАНИ" | E24: / | F24: муниципальная собсьвенность | H24: Код* по ОКОПФ/ОКФС | I24: 14 | J24: 42
C25: Единица измерения | D25: тыс.руб. | H25: Код* по ОКЕИ | I25: 384
C27: Муниципальный район | D27: Город Рязань
C29: Муниципальное образование | D29: Город Рязань
C31: ОКТМО | D31: 61701000
C33: Адрес организации
C34: Юридический адрес: | D34: 390027, ОБЛ РЯЗАНСКАЯ, Г РЯЗАНЬ, Ш КАСИМОВСКОЕ, д.9
C35: Почтовый адрес: | D35: 390000, Рязанская Область, Рязань Город, Касимовское Шоссе, д.9
C37: Руководитель
C38: Фамилия, имя, отчество: | D38: Штефае Олег Борисович
C39: (код) номер телефона: | D39: (4912) 41 00 10 | H39: * Расшифровки всех сокращений и ссылки приведены на листе "Инструкция"
C41: Главный бухгалтер
C42: Фамилия, имя, отчество: | D42: Куранова Наталия Александровна
C43: (код) номер телефона: | D43: (4912) 41 80 48
C45: Должностное лицо, ответственное за составление формы
C46: Фамилия, имя, отчество: | D46: Оболенцева Екатерина Николаевна
C47: Должность: | D47: Начальник планово-экономического отдела
C48: (код) номер телефона: | D48: (4912) 41 02 13
C49: e-mail: | D49: obn@vkrzn.ru
C51: Дата составления документа | D51: =TODAY() -> 2017-04-19

Sheet Актив
A2: Амурская область
R7: Форма 0710001 с. 1
D8: АКТИВ
Q10: =IF(unit="","",unit) -> тыс.руб.
E11: № п/п | F11: Актив | G11: Код показателя | H11: ="На " & IF(report_date=""," отчётную дату отчётного года",report_date&" г.") -> На 31.12.2016 г. | K11: ="На 31 декабря " & IF(god=""," предыдущего года",god-1&" г.") -> На 31 декабря 2015 г. | N11: ="На 31 декабря " & IF(god=""," года, предшествующего предыдущему",god-2&" г.") -> На 31 декабря 2014 г. | Q11: Пояснения
E12: 1 | F12: 2 | G12: 3 | H12: 4 | K12: 5 | N12: 6 | Q12: 7
E13: 1 | F13: I. ВНЕОБОРОТНЫЕ АКТИВЫ
B14: 1110 | E14: 1.1 | F14: Нематериальные активы | G14: 1110
B15: 1120 | E15: 1.2 | F15: Результаты исследований и разработок | G15: 1120
B16: 1180
B17: 1190
B18: 1130 | E18: 1.3 | F18: Основные средства | G18: 1130 | I18: 1821068 | L18: 1662297 | O18: 1658982
B19: 1140 | E19: 1.4 | F19: Доходные вложения в материальные ценности | G19: 1140
B20: 1150 | E20: 1.5 | F20: Финансовые вложения | G20: 1150 | I20: 20 | L20: 20 | O20: 20
B21: 1160 | E21: 1.6 | F21: Отложенные налоговые активы | G21: 1160 | I21: 2868 | L21: 3253 | O21: 11542
B22: 1170 | E22: 1.7 | F22: Прочие внеоборотные активы | G22: 1170 | I22: 115226 | L22: 261911 | O22: 210085
B23: 1100 | E23: 1.8 | F23: ИТОГО по разделу I | G23: 1100 | H23: =IF((SUMIF(OFFSET(SUM_1100_1,0,-1),"",SUM_1100_1)-SUMIF(OFFSET(SUM_1100_1,0,-1),"(",SUM_1100_1))<0,"(","") ->  | I23: =ABS(SUMIF(OFFSET(SUM_1100_1,0,-1),"",SUM_1100_1)-SUMIF(OFFSET(SUM_1100_1,0,-1),"(",SUM_1100_1)) -> 1939182 | J23: =IF(H23="(",")","") ->  | K23: =IF((SUMIF(OFFSET(SUM_1100_2,0,-1),"",SUM_1100_2)-SUMIF(OFFSET(SUM_1100_2,0,-1),"(",SUM_1100_2))<0,"(","") ->  | L23: =ABS(SUMIF(OFFSET(SUM_1100_2,0,-1),"",SUM_1100_2)-SUMIF(OFFSET(SUM_1100_2,0,-1),"(",SUM_1100_2)) -> 1927481 | M23: =IF(K23="(",")","") ->  | N23: =IF((SUMIF(OFFSET(SUM_1100_3,0,-1),"",SUM_1100_3)-SUMIF(OFFSET(SUM_1100_3,0,-1),"(",SUM_1100_3))<0,"(","") ->  | O23: =ABS(SUMIF(OFFSET(SUM_1100_3,0,-1),"",SUM_1100_3)-SUMIF(OFFSET(SUM_1100_3,0,-1),"(",SUM_1100_3)) -> 1880629 | P23: =IF(N23="(",")","") -> 
E24: 2 | F24: II. ОБОРОТНЫЕ АКТИВЫ
E25: 2.1 | F25: Запасы | G25: 1210 | I25: 53607 | L25: 47372 | O25: 44405
E26: 2.2 | F26: Налог на добавленную стоимость по приобретенным ценностям | G26: 1220 | I26: 7542 | L26: 11997 | O26: 16618
E27: 2.3 | F27: Дебиторская задолженность | G27: 1230 | I27: 295458 | L27: 300686 | O27: 256515
E28: 2.4 | F28: Финансовые вложения (за исключением денежных эквивалентов) | G28: 1240
E29: 2.5 | F29: Денежные средства и денежные эквиваленты | G29: 1250 | I29: 22661 | L29: 30778 | O29: 52640
E30: 2.6 | F30: Прочие оборотные активы | G30: 1260 | I30: 25228 | L30: 27892 | O30: 18270
E31: 2.7 | F31: ИТОГО по разделу II | G31: 1200 | H31: =IF((SUMIF(OFFSET(SUM_1200_1,0,-1),"",SUM_1200_1)-SUMIF(OFFSET(SUM_1200_1,0,-1),"(",SUM_1200_1))<0,"(","") ->  | I31: =ABS(SUMIF(OFFSET(SUM_1200_1,0,-1),"",SUM_1200_1)-SUMIF(OFFSET(SUM_1200_1,0,-1),"(",SUM_1200_1)) -> 404496 | J31: =IF(H31="(",")","") ->  | K31: =IF((SUMIF(OFFSET(SUM_1200_2,0,-1),"",SUM_1200_2)-SUMIF(OFFSET(SUM_1200_2,0,-1),"(",SUM_1200_2))<0,"(","") ->  | L31: =ABS(SUMIF(OFFSET(SUM_1200_2,0,-1),"",SUM_1200_2)-SUMIF(OFFSET(SUM_1200_2,0,-1),"(",SUM_1200_2)) -> 418725 | M31: =IF(K31="(",")","") ->  | N31: =IF((SUMIF(OFFSET(SUM_1200_3,0,-1),"",SUM_1200_3)-SUMIF(OFFSET(SUM_1200_3,0,-1),"(",SUM_1200_3))<0,"(","") ->  | O31: =ABS(SUMIF(OFFSET(SUM_1200_3,0,-1),"",SUM_1200_3)-SUMIF(OFFSET(SUM_1200_3,0,-1),"(",SUM_1200_3)) -> 388448 | P31: =IF(N31="(",")","") -> 
E32: 3 | F32: БАЛАНС | G32: 1600 | H32: =IF((IF(H23="(",-LINE_1100_1,LINE_1100_1)+IF(H31="(",-LINE_1200_1,LINE_1200_1))<0,"(","") ->  | I32: =ABS(IF(H23="(",-LINE_1100_1,LINE_1100_1)+IF(H31="(",-LINE_1200_1,LINE_1200_1)) -> 2343678 | K32: =IF((IF(K23="(",-LINE_1100_2,LINE_1100_2)+IF(K31="(",-LINE_1200_2,LINE_1200_2))<0,"(","") ->  | L32: =ABS(IF(K23="(",-LINE_1100_2,LINE_1100_2)+IF(K31="(",-LINE_1200_2,LINE_1200_2)) -> 2346206 | N32: =IF((IF(N23="(",-LINE_1100_3,LINE_1100_3)+IF(N31="(",-LINE_1200_3,LINE_1200_3))<0,"(","") ->  | O32: =ABS(IF(N23="(",-LINE_1100_3,LINE_1100_3)+IF(N31="(",-LINE_1200_3,LINE_1200_3)) -> 2269077

Sheet Пассив
A2: Амурская область
R7: Форма 0710001 с. 2
D8: ПАССИВ
Q10: =IF(unit="","",unit) -> тыс.руб.
E11: № п/п | F11: Пассив | G11: Код показателя | H11: ="На " & IF(report_date=""," отчётную дату отчётного года",report_date&" г.") -> На 31.12.2016 г. | K11: ="На 31 декабря " & IF(god=""," предыдущего года",god-1&" г.") -> На 31 декабря 2015 г. | N11: ="На 31 декабря " & IF(god=""," года, предшествующего предыдущему",god-2&" г.") -> На 31 декабря 2014 г. | Q11: Пояснения
E12: 1 | F12: 2 | G12: 3 | H12: 4 | K12: 5 | N12: 6 | Q12: 7
E13: 1 | F13: III. КАПИТАЛ И РЕЗЕРВЫ
E14: 1.1 | F14: Уставный капитал (складочный капитал, уставный фонд, вклады товарищей) | G14: 1310 | I14: 51 | L14: 51 | O14: 51
E15: 1.2 | F15: Собственные акции, выкупленные у акционеров | G15: 1320 | H15: ( | J15: ) | K15: ( | M15: ) | N15: ( | P15: )
E16: 1.3 | F16: Переоценка внеоборотных активов | G16: 1340 | I16: 333568 | L16: 334085 | O16: 334736
E17: 1.4 | F17: Добавочный капитал (без переоценки) | G17: 1350
E18: 1.5 | F18: Резервный капитал | G18: 1360
E19: 1.6 | F19: Нераспределенная прибыль (непокрытый убыток) | G19: 1370 | I19: 1313541 | L19: 1261041 | O19: 1249437
E20: 1.7 | F20: ИТОГО по разделу III | G20: 1300 | H20: =IF((SUMIF(OFFSET(SUM_1300_1,0,-1),"",SUM_1300_1)-SUMIF(OFFSET(SUM_1300_1,0,-1),"(",SUM_1300_1))<0,"(","") ->  | I20: =ABS(SUMIF(OFFSET(SUM_1300_1,0,-1),"",SUM_1300_1)-SUMIF(OFFSET(SUM_1300_1,0,-1),"(",SUM_1300_1)) -> 1647160 | J20: =IF(H20="(",")","") ->  | K20: =IF((SUMIF(OFFSET(SUM_1300_2,0,-1),"",SUM_1300_2)-SUMIF(OFFSET(SUM_1300_2,0,-1),"(",SUM_1300_2))<0,"(","") ->  | L20: =ABS(SUMIF(OFFSET(SUM_1300_2,0,-1),"",SUM_1300_2)-SUMIF(OFFSET(SUM_1300_2,0,-1),"(",SUM_1300_2)) -> 1595177 | M20: =IF(K20="(",")","") ->  | N20: =IF((SUMIF(OFFSET(SUM_1300_3,0,-1),"",SUM_1300_3)-SUMIF(OFFSET(SUM_1300_3,0,-1),"(",SUM_1300_3))<0,"(","") ->  | O20: =ABS(SUMIF(OFFSET(SUM_1300_3,0,-1),"",SUM_1300_3)-SUMIF(OFFSET(SUM_1300_3,0,-1),"(",SUM_1300_3)) -> 1584224 | P20: =IF(N20="(",")","") -> 
E21: 2 | F21: IV. ДОЛГОСРОЧНЫЕ ОБЯЗАТЕЛЬСТВА
E22: 2.1 | F22: Заемные средства | G22: 1410
E23: 2.2 | F23: Отложенные налоговые обязательства | G23: 1420 | I23: 33644 | L23: 32918 | O23: 40931
E24: 2.3 | F24: Оценочные обязательства | G24: 1430
E25: 2.3 | F25: Прочие обязательства | G25: 1450
E26: 2.4 | F26: ИТОГО по разделу IV | G26: 1400 | H26: =IF((SUMIF(OFFSET(SUM_1400_1,0,-1),"",SUM_1400_1)-SUMIF(OFFSET(SUM_1400_1,0,-1),"(",SUM_1400_1))<0,"(","") ->  | I26: =ABS(SUMIF(OFFSET(SUM_1400_1,0,-1),"",SUM_1400_1)-SUMIF(OFFSET(SUM_1400_1,0,-1),"(",SUM_1400_1)) -> 33644 | J26: =IF(H26="(",")","") ->  | K26: =IF((SUMIF(OFFSET(SUM_1400_2,0,-1),"",SUM_1400_2)-SUMIF(OFFSET(SUM_1400_2,0,-1),"(",SUM_1400_2))<0,"(","") ->  | L26: =ABS(SUMIF(OFFSET(SUM_1400_2,0,-1),"",SUM_1400_2)-SUMIF(OFFSET(SUM_1400_2,0,-1),"(",SUM_1400_2)) -> 32918 | M26: =IF(K26="(",")","") ->  | N26: =IF((SUMIF(OFFSET(SUM_1400_3,0,-1),"",SUM_1400_3)-SUMIF(OFFSET(SUM_1400_3,0,-1),"(",SUM_1400_3))<0,"(","") ->  | O26: =ABS(SUMIF(OFFSET(SUM_1400_3,0,-1),"",SUM_1400_3)-SUMIF(OFFSET(SUM_1400_3,0,-1),"(",SUM_1400_3)) -> 40931 | P26: =IF(N26="(",")","") -> 
E27: 3 | F27: V. КРАТКОСРОЧНЫЕ ОБЯЗАТЕЛЬСТВА
E28: 3.1 | F28: Заемные средства | G28: 1510 | O28: 35942
E29: 3.2 | F29: Кредиторская задолженность | G29: 1520 | I29: 626008 | L29: 672434 | O29: 554548
E30: 3.3 | F30: Доходы будущих периодов | G30: 1530 | I30: 36547 | L30: 42742 | O30: 51191
E31: 3.4 | F31: Оценочные обязательства | G31: 1540
E32: 3.5 | F32: Прочие обязательства | G32: 1550 | I32: 319 | L32: 2935 | O32: 2241
E33: 3.6 | F33: ИТОГО по разделу V | G33: 1500 | H33: =IF((SUMIF(OFFSET(SUM_1500_1,0,-1),"",SUM_1500_1)-SUMIF(OFFSET(SUM_1500_1,0,-1),"(",SUM_1500_1))<0,"(","") ->  | I33: =ABS(SUMIF(OFFSET(SUM_1500_1,0,-1),"",SUM_1500_1)-SUMIF(OFFSET(SUM_1500_1,0,-1),"(",SUM_1500_1)) -> 662874 | J33: =IF(H33="(",")","") ->  | K33: =IF((SUMIF(OFFSET(SUM_1500_2,0,-1),"",SUM_1500_2)-SUMIF(OFFSET(SUM_1500_2,0,-1),"(",SUM_1500_2))<0,"(","") ->  | L33: =ABS(SUMIF(OFFSET(SUM_1500_2,0,-1),"",SUM_1500_2)-SUMIF(OFFSET(SUM_1500_2,0,-1),"(",SUM_1500_2)) -> 718111 | M33: =IF(K33="(",")","") ->  | N33: =IF((SUMIF(OFFSET(SUM_1500_3,0,-1),"",SUM_1500_3)-SUMIF(OFFSET(SUM_1500_3,0,-1),"(",SUM_1500_3))<0,"(","") ->  | O33: =ABS(SUMIF(OFFSET(SUM_1500_3,0,-1),"",SUM_1500_3)-SUMIF(OFFSET(SUM_1500_3,0,-1),"(",SUM_1500_3)) -> 643922 | P33: =IF(N33="(",")","") -> 
E34: 4 | F34: БАЛАНС | G34: 1700 | H34: =IF((IF(H20="(",-LINE_1300_1,LINE_1300_1)+IF(H26="(",-LINE_1400_1,LINE_1400_1)+IF(H33="(",-LINE_1500_1,LINE_1500_1))<0,"(","") ->  | I34: =ABS(IF(H20="(",-LINE_1300_1,LINE_1300_1)+IF(H26="(",-LINE_1400_1,LINE_1400_1)+IF(H33="(",-LINE_1500_1,LINE_1500_1)) -> 2343678 | K34: =IF((IF(K20="(",-LINE_1300_2,LINE_1300_2)+IF(K26="(",-LINE_1400_2,LINE_1400_2)+IF(K33="(",-LINE_1500_2,LINE_1500_2))<0,"(","") ->  | L34: =ABS(IF(K20="(",-LINE_1300_2,LINE_1300_2)+IF(K26="(",-LINE_1400_2,LINE_1400_2)+IF(K33="(",-LINE_1500_2,LINE_1500_2)) -> 2346206 | N34: =IF((IF(N20="(",-LINE_1300_3,LINE_1300_3)+IF(N26="(",-LINE_1400_3,LINE_1400_3)+IF(N33="(",-LINE_1500_3,LINE_1500_3))<0,"(","") ->  | O34: =ABS(IF(N20="(",-LINE_1300_3,LINE_1300_3)+IF(N26="(",-LINE_1400_3,LINE_1400_3)+IF(N33="(",-LINE_1500_3,LINE_1500_3)) -> 2269077

Sheet Расшифровка показателей
A2: Амурская область
Q7: Форма 0710001 с. 3
D8: Расшифровка отдельных показателей бухгалтерского баланса
P10: =IF(unit="","",unit) -> тыс.руб.
E11: № п/п | F11: Наименование | G11: Код показателя | H11: ="На " & IF(report_date=""," отчётную дату отчётного года",report_date&" г.") -> На 31.12.2016 г. | K11: ="На 31 декабря " & IF(god=""," предыдущего года",god-1&" г.") -> На 31 декабря 2015 г. | N11: ="На 31 декабря " & IF(god=""," года, предшествующего предыдущему",god-2&" г.") -> На 31 декабря 2014 г.
E12: 1 | F12: 2 | G12: 3 | H12: 4 | K12: 5 | N12: 6
E13: 1 | F13: Нематериальные активы (стр.1110), в том числе: | H13: =IF(Актив!H14="(","(","") ->  | I13: =Актив!I14 -> 0 | J13: =IF(H13="(",")","") ->  | K13: =IF(Актив!K14="(","(","") ->  | L13: =Актив!L14 -> 0 | M13: =IF(K13="(",")","") ->  | N13: =IF(Актив!N14="(","(","") ->  | O13: =Актив!O14 -> 0 | P13: =IF(N13="(",")","") -> 
E14: 1.1 | G14: 11101
E15: 1.2 | G15: 11102
E16: 1.3 | G16: 11103
F17: Добавить строку
E18: 2 | F18: Результаты исследований и разработок (стр.1120), в том числе: | H18: =IF(Актив!H15="(","(","") ->  | I18: =Актив!I15 -> 0 | J18: =IF(H18="(",")","") ->  | K18: =IF(Актив!K15="(","(","") ->  | L18: =Актив!L15 -> 0 | M18: =IF(K18="(",")","") ->  | N18: =IF(Актив!N15="(","(","") ->  | O18: =Актив!O15 -> 0 | P18: =IF(N18="(",")","") -> 
E19: 2.1 | G19: 11201
E20: 2.2 | G20: 11202
F21: Добавить строку
E30: 5 | F30: ="Основные средства (стр."&Актив!$G$18&"), в том числе:" -> Основные средства (стр.1130), в том числе: | H30: =IF(Актив!H18="(","(","") ->  | I30: =Актив!I18 -> 1821068 | J30: =IF(H30="(",")","") ->  | K30: =IF(Актив!K18="(","(","") ->  | L30: =Актив!L18 -> 1662297 | M30: =IF(K30="(",")","") ->  | N30: =IF(Актив!N18="(","(","") ->  | O30: =Актив!O18 -> 1658982 | P30: =IF(N30="(",")","") -> 
E31: 5.1 | G31: =Актив!$G$18&"1" -> 11301
E32: 5.2 | G32: =Актив!$G$18&"2" -> 11302
E33: 5.3 | G33: =Актив!$G$18&"3" -> 11303
F34: Добавить строку
E35: 6 | F35: ="Доходные вложения (стр."&Актив!$G$19&"), в том числе:" -> Доходные вложения (стр.1140), в том числе: | H35: =IF(Актив!H19="(","(","") ->  | I35: =Актив!I19 -> 0 | J35: =IF(H35="(",")","") ->  | K35: =IF(Актив!K19="(","(","") ->  | L35: =Актив!L19 -> 0 | M35: =IF(K35="(",")","") ->  | N35: =IF(Актив!N19="(","(","") ->  | O35: =Актив!O19 -> 0 | P35: =IF(N35="(",")","") -> 
E36: 6.1 | G36: =Актив!$G$19&"1" -> 11401
E37: 6.2 | G37: =Актив!$G$19&"2" -> 11402
F38: Добавить строку
E39: 7 | F39: ="Финансовые вложения (стр."&Актив!$G$20&"), в том числе:" -> Финансовые вложения (стр.1150), в том числе: | H39: =IF(Актив!H20="(","(","") ->  | I39: =Актив!I20 -> 20 | J39: =IF(H39="(",")","") ->  | K39: =IF(Актив!K20="(","(","") ->  | L39: =Актив!L20 -> 20 | M39: =IF(K39="(",")","") ->  | N39: =IF(Актив!N20="(","(","") ->  | O39: =Актив!O20 -> 20 | P39: =IF(N39="(",")","") -> 
E40: 7.1 | G40: =Актив!$G$20&"1" -> 11501
E41: 7.2 | G41: =Актив!$G$20&"2" -> 11502
E42: 7.3 | G42: =Актив!$G$20&"3" -> 11503
E43: 7.4 | G43: =Актив!$G$20&"4" -> 11504
F44: Добавить строку
E45: 8 | F45: ="Отложенные налоговые активы (стр."&Актив!$G$21&"), в том числе:" -> Отложенные налоговые активы (стр.1160), в том числе: | H45: =IF(Актив!H21="(","(","") ->  | I45: =Актив!I21 -> 2868 | J45: =IF(H45="(",")","") ->  | K45: =IF(Актив!K21="(","(","") ->  | L45: =Актив!L21 -> 3253 | M45: =IF(K45="(",")","") ->  | N45: =IF(Актив!N21="(","(","") ->  | O45: =Актив!O21 -> 11542 | P45: =IF(N45="(",")","") -> 
E46: 8.1 | G46: =Актив!$G$21&"1" -> 11601
F47: Добавить строку
E48: 9 | F48: ="Вписываемые показатели (стр."&IF(Актив!$G$21="1180","1185","1165")&"), в том числе:" -> Вписываемые показатели (стр.1165), в том числе: | H48: =IF((SUMIF(OFFSET(SUM_1165_1,0,-1),"",SUM_1165_1)-SUMIF(OFFSET(SUM_1165_1,0,-1),"(",SUM_1165_1))<0,"(","") ->  | I48: =ABS(SUMIF(OFFSET(SUM_1165_1,0,-1),"",SUM_1165_1)-SUMIF(OFFSET(SUM_1165_1,0,-1),"(",SUM_1165_1)) -> 0 | J48: =IF(H48="(",")","") ->  | K48: =IF((SUMIF(OFFSET(SUM_1165_2,0,-1),"",SUM_1165_2)-SUMIF(OFFSET(SUM_1165_2,0,-1),"(",SUM_1165_2))<0,"(","") ->  | L48: =ABS(SUMIF(OFFSET(SUM_1165_2,0,-1),"",SUM_1165_2)-SUMIF(OFFSET(SUM_1165_2,0,-1),"(",SUM_1165_2)) -> 0 | M48: =IF(K48="(",")","") ->  | N48: =IF((SUMIF(OFFSET(SUM_1165_3,0,-1),"",SUM_1165_3)-SUMIF(OFFSET(SUM_1165_3,0,-1),"(",SUM_1165_3))<0,"(","") ->  | O48: =ABS(SUMIF(OFFSET(SUM_1165_3,0,-1),"",SUM_1165_3)-SUMIF(OFFSET(SUM_1165_3,0,-1),"(",SUM_1165_3)) -> 0 | P48: =IF(N48="(",")","") -> 
E49: 9.1 | G49: =IF(Актив!$G$21="1180","1185","1165")&"1" -> 11651
E50: 9.2 | G50: =IF(Актив!$G$21="1180","1185","1165")&"2" -> 11652
F51: Добавить строку
E52: 10 | F52: ="Прочие внеоборотные активы (стр."&Актив!$G$22&"), в том числе:" -> Прочие внеоборотные активы (стр.1170), в том числе: | H52: =IF(Актив!H22="(","(","") ->  | I52: =Актив!I22 -> 115226 | J52: =IF(H52="(",")","") ->  | K52: =IF(Актив!K22="(","(","") ->  | L52: =Актив!L22 -> 261911 | M52: =IF(K52="(",")","") ->  | N52: =IF(Актив!N22="(","(","") ->  | O52: =Актив!O22 -> 210085 | P52: =IF(N52="(",")","") -> 
E53: 10.1 | G53: =Актив!$G$22&"1" -> 11701
E54: 10.2 | G54: =Актив!$G$22&"2" -> 11702
E55: 10.3 | G55: =Актив!$G$22&"3" -> 11703
F56: Добавить строку
E57: 11 | F57: Запасы (стр.1210), в том числе: | H57: =IF(Актив!H25="(","(","") ->  | I57: =Актив!I25 -> 53607 | J57: =IF(H57="(",")","") ->  | K57: =IF(Актив!K25="(","(","") ->  | L57: =Актив!L25 -> 47372 | M57: =IF(K57="(",")","") ->  | N57: =IF(Актив!N25="(","(","") ->  | O57: =Актив!O25 -> 44405 | P57: =IF(N57="(",")","") -> 
E58: 11.1 | G58: 12101
E59: 11.2 | G59: 12102
E60: 11.3 | G60: 12103
E61: 11.4 | G61: 12104
E62: 11.5 | G62: 12105
F63: Добавить строку
E64: 12 | F64: Налог на добавленную стоимость по приобретенным ценностям (стр.1220), в том числе: | H64: =IF(Актив!H26="(","(","") ->  | I64: =Актив!I26 -> 7542 | J64: =IF(H64="(",")","") ->  | K64: =IF(Актив!K26="(","(","") ->  | L64: =Актив!L26 -> 11997 | M64: =IF(K64="(",")","") ->  | N64: =IF(Актив!N26="(","(","") ->  | O64: =Актив!O26 -> 16618 | P64: =IF(N64="(",")","") -> 
E65: 12.1 | G65: 12201
F66: Добавить строку
E67: 13 | F67: Дебиторская задолженность (стр.1230), в том числе: | H67: =IF(Актив!H27="(","(","") ->  | I67: =Актив!I27 -> 295458 | J67: =IF(H67="(",")","") ->  | K67: =IF(Актив!K27="(","(","") ->  | L67: =Актив!L27 -> 300686 | M67: =IF(K67="(",")","") ->  | N67: =IF(Актив!N27="(","(","") ->  | O67: =Актив!O27 -> 256515 | P67: =IF(N67="(",")","") -> 
E68: 13.1 | G68: 12301
E69: 13.2 | G69: 12302
E70: 13.3 | G70: 12303
E71: 13.4 | G71: 12304
E72: 13.5 | G72: 12305
F73: Добавить строку
E74: 14 | F74: Финансовые вложения (за исключением денежных эквивалентов) (стр.1240), в том числе: | H74: =IF(Актив!H28="(","(","") ->  | I74: =Актив!I28 -> 0 | J74: =IF(H74="(",")","") ->  | K74: =IF(Актив!K28="(","(","") ->  | L74: =Актив!L28 -> 0 | M74: =IF(K74="(",")","") ->  | N74: =IF(Актив!N28="(","(","") ->  | O74: =Актив!O28 -> 0 | P74: =IF(N74="(",")","") -> 
E75: 14.1 | G75: 12401
E76: 14.2 | G76: 12402
E77: 14.3 | G77: 12403
F78: Добавить строку
E79: 15 | F79: Денежные средства и денежные эквиваленты (стр.1250), в том числе: | H79: =IF(Актив!H29="(","(","") ->  | I79: =Актив!I29 -> 22661 | J79: =IF(H79="(",")","") ->  | K79: =IF(Актив!K29="(","(","") ->  | L79: =Актив!L29 -> 30778 | M79: =IF(K79="(",")","") ->  | N79: =IF(Актив!N29="(","(","") ->  | O79: =Актив!O29 -> 52640 | P79: =IF(N79="(",")","") -> 
E80: 15.1 | G80: 12501
E81: 15.2 | G81: 12502
F82: Добавить строку
E83: 16 | F83: Вписываемые показатели (стр.1255), в том числе: | H83: =IF((SUMIF(OFFSET(SUM_1255_1,0,-1),"",SUM_1255_1)-SUMIF(OFFSET(SUM_1255_1,0,-1),"(",SUM_1255_1))<0,"(","") ->  | I83: =ABS(SUMIF(OFFSET(SUM_1255_1,0,-1),"",SUM_1255_1)-SUMIF(OFFSET(SUM_1255_1,0,-1),"(",SUM_1255_1)) -> 0 | J83: =IF(H83="(",")","") ->  | K83: =IF((SUMIF(OFFSET(SUM_1255_2,0,-1),"",SUM_1255_2)-SUMIF(OFFSET(SUM_1255_2,0,-1),"(",SUM_1255_2))<0,"(","") ->  | L83: =ABS(SUMIF(OFFSET(SUM_1255_2,0,-1),"",SUM_1255_2)-SUMIF(OFFSET(SUM_1255_2,0,-1),"(",SUM_1255_2)) -> 0 | M83: =IF(K83="(",")","") ->  | N83: =IF((SUMIF(OFFSET(SUM_1255_3,0,-1),"",SUM_1255_3)-SUMIF(OFFSET(SUM_1255_3,0,-1),"(",SUM_1255_3))<0,"(","") ->  | O83: =ABS(SUMIF(OFFSET(SUM_1255_3,0,-1),"",SUM_1255_3)-SUMIF(OFFSET(SUM_1255_3,0,-1),"(",SUM_1255_3)) -> 0 | P83: =IF(N83="(",")","") -> 
E84: 16.1 | G84: 12551
E85: 16.2 | G85: 12552
F86: Добавить строку
E87: 17 | F87: Прочие оборотные активы (стр.1260), в том числе: | H87: =IF(Актив!H30="(","(","") ->  | I87: =Актив!I30 -> 25228 | J87: =IF(H87="(",")","") ->  | K87: =IF(Актив!K30="(","(","") ->  | L87: =Актив!L30 -> 27892 | M87: =IF(K87="(",")","") ->  | N87: =IF(Актив!N30="(","(","") ->  | O87: =Актив!O30 -> 18270 | P87: =IF(N87="(",")","") -> 
E88: 17.1 | G88: 12601
E89: 17.2 | G89: 12602
E90: 17.3 | G90: 12603
F91: Добавить строку
E92: 18 | F92: Уставный капитал (складочный капитал, уставный фонд, вклады товарищей) (стр.1310), в том числе: | H92: =IF(Пассив!H14="(","(","") ->  | I92: =Пассив!I14 -> 51 | J92: =IF(H92="(",")","") ->  | K92: =IF(Пассив!K14="(","(","") ->  | L92: =Пассив!L14 -> 51 | M92: =IF(K92="(",")","") ->  | N92: =IF(Пассив!N14="(","(","") ->  | O92: =Пассив!O14 -> 51 | P92: =IF(N92="(",")","") -> 
E93: 18.1 | G93: 13101
F94: Добавить строку
E95: 19 | F95: Собственные акции, выкупленные у акционеров (стр.1320), в том числе: | H95: =IF(Пассив!H15="(","(","") -> ( | I95: =Пассив!I15 -> 0 | J95: =IF(H95="(",")","") -> ) | K95: =IF(Пассив!K15="(","(","") -> ( | L95: =Пассив!L15 -> 0 | M95: =IF(K95="(",")","") -> ) | N95: =IF(Пассив!N15="(","(","") -> ( | O95: =Пассив!O15 -> 0 | P95: =IF(N95="(",")","") -> )
E96: 19.1 | G96: 13201 | H96: ( | J96: ) | K96: ( | M96: ) | N96: ( | P96: )
F97: Добавить строку
E98: 20 | F98: Целевой капитал (стр.1320), в том числе: | H98: =IF((SUMIF(OFFSET(SUM_1320_1,0,-1),"",SUM_1320_1)-SUMIF(OFFSET(SUM_1320_1,0,-1),"(",SUM_1320_1))<0,"(","") ->  | I98: =ABS(SUMIF(OFFSET(SUM_1320_1,0,-1),"",SUM_1320_1)-SUMIF(OFFSET(SUM_1320_1,0,-1),"(",SUM_1320_1)) -> 0 | J98: =IF(H98="(",")","") ->  | K98: =IF((SUMIF(OFFSET(SUM_1320_2,0,-1),"",SUM_1320_2)-SUMIF(OFFSET(SUM_1320_2,0,-1),"(",SUM_1320_2))<0,"(","") ->  | L98: =ABS(SUMIF(OFFSET(SUM_1320_2,0,-1),"",SUM_1320_2)-SUMIF(OFFSET(SUM_1320_2,0,-1),"(",SUM_1320_2)) -> 0 | M98: =IF(K98="(",")","") ->  | N98: =IF((SUMIF(OFFSET(SUM_1320_3,0,-1),"",SUM_1320_3)-SUMIF(OFFSET(SUM_1320_3,0,-1),"(",SUM_1320_3))<0,"(","") ->  | O98: =ABS(SUMIF(OFFSET(SUM_1320_3,0,-1),"",SUM_1320_3)-SUMIF(OFFSET(SUM_1320_3,0,-1),"(",SUM_1320_3)) -> 0 | P98: =IF(N98="(",")","") -> 
E99: 20.1 | G99: 13201
F100: Добавить строку
E101: 21 | F101: Переоценка внеоборотных активов (стр.1340), в том числе: | H101: =IF(Пассив!H16="(","(","") ->  | I101: =Пассив!I16 -> 333568 | J101: =IF(H101="(",")","") ->  | K101: =IF(Пассив!K16="(","(","") ->  | L101: =Пассив!L16 -> 334085 | M101: =IF(K101="(",")","") ->  | N101: =IF(Пассив!N16="(","(","") ->  | O101: =Пассив!O16 -> 334736 | P101: =IF(N101="(",")","") -> 
E102: 21.1 | G102: 13401
F103: Добавить строку
E104: 22 | F104: Добавочный капитал (без переоценки)/Целевые средства (стр.1350), в том числе: | H104: =IF(Пассив!H17="(","(","") ->  | I104: =Пассив!I17 -> 0 | J104: =IF(H104="(",")","") ->  | K104: =IF(Пассив!K17="(","(","") ->  | L104: =Пассив!L17 -> 0 | M104: =IF(K104="(",")","") ->  | N104: =IF(Пассив!N17="(","(","") ->  | O104: =Пассив!O17 -> 0 | P104: =IF(N104="(",")","") -> 
E105: 22.1 | G105: 13501
E106: 22.2 | G106: 13502
F107: Добавить строку
E108: 23 | F108: Резервный капитал/Фонд недвижимого и особо ценного движимого имущества (стр.1360), в том числе: | H108: =IF(Пассив!H18="(","(","") ->  | I108: =Пассив!I18 -> 0 | J108: =IF(H108="(",")","") ->  | K108: =IF(Пассив!K18="(","(","") ->  | L108: =Пассив!L18 -> 0 | M108: =IF(K108="(",")","") ->  | N108: =IF(Пассив!N18="(","(","") ->  | O108: =Пассив!O18 -> 0 | P108: =IF(N108="(",")","") -> 
E109: 23.1 | G109: 13601
E110: 23.2 | G110: 13602
F111: Добавить строку
E112: 24 | F112: Нераспределенная прибыль (непокрытый убыток)/Резервные и иные целевые фонды (стр.1370), в том числе: | H112: =IF(Пассив!H19="(","(","") ->  | I112: =Пассив!I19 -> 1313541 | J112: =IF(H112="(",")","") ->  | K112: =IF(Пассив!K19="(","(","") ->  | L112: =Пассив!L19 -> 1261041 | M112: =IF(K112="(",")","") ->  | N112: =IF(Пассив!N19="(","(","") ->  | O112: =Пассив!O19 -> 1249437 | P112: =IF(N112="(",")","") -> 
E113: 24.1 | G113: 13701
E114: 24.2 | G114: 13702
F115: Добавить строку
E116: 25 | F116: Вписываемые показатели (стр.1375), в том числе: | H116: =IF((SUMIF(OFFSET(SUM_1375_1,0,-1),"",SUM_1375_1)-SUMIF(OFFSET(SUM_1375_1,0,-1),"(",SUM_1375_1))<0,"(","") ->  | I116: =ABS(SUMIF(OFFSET(SUM_1375_1,0,-1),"",SUM_1375_1)-SUMIF(OFFSET(SUM_1375_1,0,-1),"(",SUM_1375_1)) -> 0 | J116: =IF(H116="(",")","") ->  | K116: =IF((SUMIF(OFFSET(SUM_1375_2,0,-1),"",SUM_1375_2)-SUMIF(OFFSET(SUM_1375_2,0,-1),"(",SUM_1375_2))<0,"(","") ->  | L116: =ABS(SUMIF(OFFSET(SUM_1375_2,0,-1),"",SUM_1375_2)-SUMIF(OFFSET(SUM_1375_2,0,-1),"(",SUM_1375_2)) -> 0 | M116: =IF(K116="(",")","") ->  | N116: =IF((SUMIF(OFFSET(SUM_1375_3,0,-1),"",SUM_1375_3)-SUMIF(OFFSET(SUM_1375_3,0,-1),"(",SUM_1375_3))<0,"(","") ->  | O116: =ABS(SUMIF(OFFSET(SUM_1375_3,0,-1),"",SUM_1375_3)-SUMIF(OFFSET(SUM_1375_3,0,-1),"(",SUM_1375_3)) -> 0 | P116: =IF(N116="(",")","") -> 
E117: 25.1 | G117: 13751
E118: 25.2 | G118: 13752
F119: Добавить строку
E120: 26 | F120: Заемные средства (стр.1410), в том числе: | H120: =IF(Пассив!H22="(","(","") ->  | I120: =Пассив!I22 -> 0 | J120: =IF(H120="(",")","") ->  | K120: =IF(Пассив!K22="(","(","") ->  | L120: =Пассив!L22 -> 0 | M120: =IF(K120="(",")","") ->  | N120: =IF(Пассив!N22="(","(","") ->  | O120: =Пассив!O22 -> 0 | P120: =IF(N120="(",")","") -> 
E121: 26.1 | G121: 14101
E122: 26.2 | G122: 14102
F123: Добавить строку
E124: 27 | F124: Отложенные налоговые обязательства (стр.1420), в том числе: | H124: =IF(Пассив!H23="(","(","") ->  | I124: =Пассив!I23 -> 33644 | J124: =IF(H124="(",")","") ->  | K124: =IF(Пассив!K23="(","(","") ->  | L124: =Пассив!L23 -> 32918 | M124: =IF(K124="(",")","") ->  | N124: =IF(Пассив!N23="(","(","") ->  | O124: =Пассив!O23 -> 40931 | P124: =IF(N124="(",")","") -> 
E125: 27.1 | G125: 14201
F126: Добавить строку
E127: 28 | F127: Оценочные обязательства (стр.1430), в том числе: | H127: =IF(Пассив!H24="(","(","") ->  | I127: =Пассив!I24 -> 0 | J127: =IF(H127="(",")","") ->  | K127: =IF(Пассив!K24="(","(","") ->  | L127: =Пассив!L24 -> 0 | M127: =IF(K127="(",")","") ->  | N127: =IF(Пассив!N24="(","(","") ->  | O127: =Пассив!O24 -> 0 | P127: =IF(N127="(",")","") -> 
E128: 28.1 | G128: 14301
E129: 28.2 | G129: 14302
F130: Добавить строку
E131: 29 | F131: Вписываемые показатели (стр.1435), в том числе: | H131: =IF((SUMIF(OFFSET(SUM_1435_1,0,-1),"",SUM_1435_1)-SUMIF(OFFSET(SUM_1435_1,0,-1),"(",SUM_1435_1))<0,"(","") ->  | I131: =ABS(SUMIF(OFFSET(SUM_1435_1,0,-1),"",SUM_1435_1)-SUMIF(OFFSET(SUM_1435_1,0,-1),"(",SUM_1435_1)) -> 0 | J131: =IF(H131="(",")","") ->  | K131: =IF((SUMIF(OFFSET(SUM_1435_2,0,-1),"",SUM_1435_2)-SUMIF(OFFSET(SUM_1435_2,0,-1),"(",SUM_1435_2))<0,"(","") ->  | L131: =ABS(SUMIF(OFFSET(SUM_1435_2,0,-1),"",SUM_1435_2)-SUMIF(OFFSET(SUM_1435_2,0,-1),"(",SUM_1435_2)) -> 0 | M131: =IF(K131="(",")","") ->  | N131: =IF((SUMIF(OFFSET(SUM_1435_3,0,-1),"",SUM_1435_3)-SUMIF(OFFSET(SUM_1435_3,0,-1),"(",SUM_1435_3))<0,"(","") ->  | O131: =ABS(SUMIF(OFFSET(SUM_1435_3,0,-1),"",SUM_1435_3)-SUMIF(OFFSET(SUM_1435_3,0,-1),"(",SUM_1435_3)) -> 0 | P131: =IF(N131="(",")","") -> 
E132: 29.1 | G132: 14351
E133: 29.2 | G133: 14352
F134: Добавить строку
E135: 30 | F135: Прочие долгосрочные обязательства (стр.1450), в том числе: | H135: =IF(Пассив!H25="(","(","") ->  | I135: =Пассив!I25 -> 0 | J135: =IF(H135="(",")","") ->  | K135: =IF(Пассив!K25="(","(","") ->  | L135: =Пассив!L25 -> 0 | M135: =IF(K135="(",")","") ->  | N135: =IF(Пассив!N25="(","(","") ->  | O135: =Пассив!O25 -> 0 | P135: =IF(N135="(",")","") -> 
E136: 30.1 | G136: 14501
F137: Добавить строку
E138: 31 | F138: Заемные средства (стр.1510), в том числе: | H138: =IF(Пассив!H28="(","(","") ->  | I138: =Пассив!I28 -> 0 | J138: =IF(H138="(",")","") ->  | K138: =IF(Пассив!K28="(","(","") ->  | L138: =Пассив!L28 -> 0 | M138: =IF(K138="(",")","") ->  | N138: =IF(Пассив!N28="(","(","") ->  | O138: =Пассив!O28 -> 35942 | P138: =IF(N138="(",")","") -> 
E139: 31.1 | G139: 15101
F140: Добавить строку
E141: 32 | F141: Кредиторская задолженность (стр.1520), в том числе: | H141: =IF(Пассив!H29="(","(","") ->  | I141: =Пассив!I29 -> 626008 | J141: =IF(H141="(",")","") ->  | K141: =IF(Пассив!K29="(","(","") ->  | L141: =Пассив!L29 -> 672434 | M141: =IF(K141="(",")","") ->  | N141: =IF(Пассив!N29="(","(","") ->  | O141: =Пассив!O29 -> 554548 | P141: =IF(N141="(",")","") -> 
E142: 32.1 | G142: 15201
E143: 32.2 | G143: 15202
E144: 32.3 | G144: 15203
E145: 32.4 | G145: 15204
E146: 32.5 | G146: 15205
E147: 32.6 | G147: 15206
E148: 32.7 | G148: 15207
F149: Добавить строку
E150: 33 | F150: Доходы будущих периодов (стр.1530), в том числе: | H150: =IF(Пассив!H30="(","(","") ->  | I150: =Пассив!I30 -> 36547 | J150: =IF(H150="(",")","") ->  | K150: =IF(Пассив!K30="(","(","") ->  | L150: =Пассив!L30 -> 42742 | M150: =IF(K150="(",")","") ->  | N150: =IF(Пассив!N30="(","(","") ->  | O150: =Пассив!O30 -> 51191 | P150: =IF(N150="(",")","") -> 
E151: 33.1 | G151: 15301
F152: Добавить строку
E153: 34 | F153: Оценочные обязательства (стр.1540), в том числе: | H153: =IF(Пассив!H31="(","(","") ->  | I153: =Пассив!I31 -> 0 | J153: =IF(H153="(",")","") ->  | K153: =IF(Пассив!K31="(","(","") ->  | L153: =Пассив!L31 -> 0 | M153: =IF(K153="(",")","") ->  | N153: =IF(Пассив!N31="(","(","") ->  | O153: =Пассив!O31 -> 0 | P153: =IF(N153="(",")","") -> 
E154: 34.1 | G154: 15401
F155: Добавить строку
E156: 35 | F156: Вписываемые показатели (стр.1545), в том числе: | H156: =IF((SUMIF(OFFSET(SUM_1545_1,0,-1),"",SUM_1545_1)-SUMIF(OFFSET(SUM_1545_1,0,-1),"(",SUM_1545_1))<0,"(","") ->  | I156: =ABS(SUMIF(OFFSET(SUM_1545_1,0,-1),"",SUM_1545_1)-SUMIF(OFFSET(SUM_1545_1,0,-1),"(",SUM_1545_1)) -> 0 | J156: =IF(H156="(",")","") ->  | K156: =IF((SUMIF(OFFSET(SUM_1545_2,0,-1),"",SUM_1545_2)-SUMIF(OFFSET(SUM_1545_2,0,-1),"(",SUM_1545_2))<0,"(","") ->  | L156: =ABS(SUMIF(OFFSET(SUM_1545_2,0,-1),"",SUM_1545_2)-SUMIF(OFFSET(SUM_1545_2,0,-1),"(",SUM_1545_2)) -> 0 | M156: =IF(K156="(",")","") ->  | N156: =IF((SUMIF(OFFSET(SUM_1545_3,0,-1),"",SUM_1545_3)-SUMIF(OFFSET(SUM_1545_3,0,-1),"(",SUM_1545_3))<0,"(","") ->  | O156: =ABS(SUMIF(OFFSET(SUM_1545_3,0,-1),"",SUM_1545_3)-SUMIF(OFFSET(SUM_1545_3,0,-1),"(",SUM_1545_3)) -> 0 | P156: =IF(N156="(",")","") -> 
E157: 35.1 | G157: 15451
E158: 35.2 | G158: 15452
F159: Добавить строку
E160: 36 | F160: Прочие краткосрочные обязательства (стр.1550), в том числе: | H160: =IF(Пассив!H32="(","(","") ->  | I160: =Пассив!I32 -> 319 | J160: =IF(H160="(",")","") ->  | K160: =IF(Пассив!K32="(","(","") ->  | L160: =Пассив!L32 -> 2935 | M160: =IF(K160="(",")","") ->  | N160: =IF(Пассив!N32="(","(","") ->  | O160: =Пассив!O32 -> 2241 | P160: =IF(N160="(",")","") -> 
E161: 36.1 | G161: 15501
F162: Добавить строку

Sheet Комментарии
A2: Амурская область
D8: КОММЕНТАРИИ

Sheet Проверка
E10: Результат проверки
E12: Ссылка | F12: Причина | G12: Статус ошибки
E13: 1 | F13: 2 | G13: 3

Sheet AllSheetsInThisWorkbook (hidden)
A1: Расчетные листы | B1: Скрытые листы
A2: Инструкция | B2: AllSheetsInThisWorkbook
A3: Титульный | B3: et_union
A4: Актив | B4: TEHSHEET
A5: Пассив | B5: REESTR_ORG
A6: Расшифровка показателей | B6: REESTR_FILTERED
A7: Комментарии | B7: REESTR_MO
A8: Проверка | B8: modHyperlink
B9: modChange
B10: modPROV
B11: modTitleSheetHeaders
B12: modServiceModule
B13: modCommandButton
B14: modReestr
B15: modClassifierValidate
B16: modInfo
B17: modfrmReestr
B18: modfrmDateChoose
B19: modDblClick
B20: modUpdTemplMain
B21: modRegionSelectSub
B22: modThisWorkbook
B23: modReestrMO
B24: modSheetMain01
B25: modSheetMain02
B26: modSheetMain03
B27: modSheetMain04
B28: modSheetMain05
B29: modSheetMain06
B30: Паспорт

Sheet et_union (hidden)
A2: add_HELP_range
A6: add_HELP_range_2
H8: ( | J8: ) | K8: ( | M8: ) | N8: ( | P8: )
A10: edit_year_dec_1
E12: 3 | F12: ="Нематериальные поисковые активы (стр."&Актив!$G$16&"), в том числе:" -> Нематериальные поисковые активы (стр.), в том числе: | H12: =IF(Актив!H$16="(","(","") ->  | I12: =Актив!I$16 -> 0 | J12: =IF(H12="(",")","") ->  | K12: =IF(Актив!K$16="(","(","") ->  | L12: =Актив!L$16 -> 0 | M12: =IF(K12="(",")","") ->  | N12: =IF(Актив!N$16="(","(","") ->  | O12: =Актив!O$16 -> 0 | P12: =IF(N12="(",")","") -> 
E13: 3.1 | G13: =Актив!$G$16&"1" -> 1
E14: 3.2 | G14: =Актив!$G$16&"2" -> 2
F15: Добавить строку
A17: edit_year_dec_2
E19: 4 | F19: ="Материальные поисковые активы (стр."&Актив!$G$17&"), в том числе:" -> Материальные поисковые активы (стр.), в том числе: | H19: =IF(Актив!H$17="(","(","") ->  | I19: =Актив!I$17 -> 0 | J19: =IF(H19="(",")","") ->  | K19: =IF(Актив!K$17="(","(","") ->  | L19: =Актив!L$17 -> 0 | M19: =IF(K19="(",")","") ->  | N19: =IF(Актив!N$17="(","(","") ->  | O19: =Актив!O$17 -> 0 | P19: =IF(N19="(",")","") -> 
E20: 4.1 | G20: =Актив!$G$17&"1" -> 1
E21: 4.2 | G21: =Актив!$G$17&"2" -> 2
F22: Добавить строку

Sheet TEHSHEET (hidden)
A1: регион | B1: Логика | C1: Кварталы | D1: Года | E1: Единица измерения | F1: Месяц-текст | G1: Месяц-число | H1: День-число | I1: Указанный год является для организации /org_operates/ | K1: XML_ORG_LIST_TAG_NAMES | X1: Диапазоны с показателями - зависят от года /active_part1_2011/
B2: да | C2: I квартал | D2: 2011 | E2: тыс.руб. | F2: январь | G2: 01 | H2: 01 | I2: первым отчетным годом | K2: NSRF
A3: Алтайский край | B3: нет | C3: I полугодие | D3: 2012 | E3: млн.руб. | F3: февраль | G3: 02 | H3: 02 | I3: вторым отчетным годом | K3: MR_NAME | X3: 1.1 | Y3: Нематериальные активы | Z3: 1110
A4: Амурская область | C4: 9 месяцев | D4: 2013 | F4: март | G4: 03 | H4: 03 | I4: третьим или последующим отчетным годом | K4: OKTMO_MR_NAME | X4: 1.2 | Y4: Результаты исследований и разработок | Z4: 1120
A5: Архангельская область | C5: год | D5: 2014 | F5: апрель | G5: 04 | H5: 04 | K5: MO_NAME
A6: Астраханская область | B6: Выбранный регион | D6: 2015 | F6: май | G6: 05 | H6: 05 | K6: OKTMO_NAME
A7: Белгородская область | B7: 0 | F7: июнь | G7: 06 | H7: 06 | K7: ORG_NAME | X7: 1.3 | Y7: Основные средства | Z7: 1130
A8: Брянская область | F8: июль | G8: 07 | H8: 07 | K8: INN_NAME | X8: 1.4 | Y8: Доходные вложения в материальные ценности | Z8: 1140
A9: Владимирская область | F9: август | G9: 08 | H9: 08 | K9: KPP_NAME | X9: 1.5 | Y9: Финансовые вложения | Z9: 1150
A10: Волгоградская область | F10: сентябрь | G10: 09 | H10: 09 | X10: 1.6 | Y10: Отложенные налоговые активы | Z10: 1160
A11: Вологодская область | F11: октябрь | G11: 10 | H11: 10 | K11: XML_MR_MO_OKTMO_LIST_TAG_NAMES | X11: 1.7 | Y11: Прочие внеоборотные активы | Z11: 1170
A12: Воронежская область | F12: ноябрь | G12: 11 | H12: 11 | K12: NSRF | X12: 1.8 | Y12: ИТОГО по разделу I | Z12: 1100
A13: г.Байконур | F13: декабрь | G13: 12 | H13: 12 | K13: MR_NAME
A14: г. Москва | H14: 13 | K14: OKTMO_MR_NAME | X14: Диапазоны с показателями - зависят от года /active_part1_2012/
A15: г.Санкт-Петербург | H15: 14 | K15: MO_NAME
A16: Еврейская автономная область | H16: 15 | K16: OKTMO_NAME | X16: 1.1 | Y16: Нематериальные активы | Z16: 1110
A17: Забайкальский край | H17: 16 | X17: 1.2 | Y17: Результаты исследований и разработок | Z17: 1120
A18: Ивановская область | H18: 17 | X18: 1.3 | Y18: Нематериальные поисковые активы | Z18: 1130
A19: Иркутская область | H19: 18 | K19: Формулы с листов Актив и Пассив | X19: 1.4 | Y19: Материальные поисковые активы | Z19: 1140
A20: Кабардино-Балкарская республика | H20: 19 | K20: LINE_1100 | L20: =IF((SUMIF(OFFSET(SUM_1100_1,0,-1),"",SUM_1100_1)-SUMIF(OFFSET(SUM_1100_1,0,-1),"(",SUM_1100_1))<0,"(","") ->  | M20: =ABS(SUMIF(OFFSET(SUM_1100_1,0,-1),"",SUM_1100_1)-SUMIF(OFFSET(SUM_1100_1,0,-1),"(",SUM_1100_1)) -> 1939182 | N20: =IF(L20="(",")","") ->  | O20: =IF((SUMIF(OFFSET(SUM_1100_2,0,-1),"",SUM_1100_2)-SUMIF(OFFSET(SUM_1100_2,0,-1),"(",SUM_1100_2))<0,"(","") ->  | P20: =ABS(SUMIF(OFFSET(SUM_1100_2,0,-1),"",SUM_1100_2)-SUMIF(OFFSET(SUM_1100_2,0,-1),"(",SUM_1100_2)) -> 1927481 | Q20: =IF(O20="(",")","") ->  | R20: =IF((SUMIF(OFFSET(SUM_1100_3,0,-1),"",SUM_1100_3)-SUMIF(OFFSET(SUM_1100_3,0,-1),"(",SUM_1100_3))<0,"(","") ->  | S20: =ABS(SUMIF(OFFSET(SUM_1100_3,0,-1),"",SUM_1100_3)-SUMIF(OFFSET(SUM_1100_3,0,-1),"(",SUM_1100_3)) -> 1880629 | T20: =IF(R20="(",")","") ->  | X20: 1.5 | Y20: Основные средства | Z20: 1150
A21: Калининградская область | H21: 20 | K21: LINE_1200 | L21: =IF((SUMIF(OFFSET(SUM_1200_1,0,-1),"",SUM_1200_1)-SUMIF(OFFSET(SUM_1200_1,0,-1),"(",SUM_1200_1))<0,"(","") ->  | M21: =ABS(SUMIF(OFFSET(SUM_1200_1,0,-1),"",SUM_1200_1)-SUMIF(OFFSET(SUM_1200_1,0,-1),"(",SUM_1200_1)) -> 404496 | O21: =IF((SUMIF(OFFSET(SUM_1200_2,0,-1),"",SUM_1200_2)-SUMIF(OFFSET(SUM_1200_2,0,-1),"(",SUM_1200_2))<0,"(","") ->  | P21: =ABS(SUMIF(OFFSET(SUM_1200_2,0,-1),"",SUM_1200_2)-SUMIF(OFFSET(SUM_1200_2,0,-1),"(",SUM_1200_2)) -> 418725 | R21: =IF((SUMIF(OFFSET(SUM_1200_3,0,-1),"",SUM_1200_3)-SUMIF(OFFSET(SUM_1200_3,0,-1),"(",SUM_1200_3))<0,"(","") ->  | S21: =ABS(SUMIF(OFFSET(SUM_1200_3,0,-1),"",SUM_1200_3)-SUMIF(OFFSET(SUM_1200_3,0,-1),"(",SUM_1200_3)) -> 388448 | X21: 1.6 | Y21: Доходные вложения в материальные ценности | Z21: 1160
A22: Калужская область | H22: 21 | K22: LINE_1600 | L22: =IF((IF(L13="(",-LINE_1100_1,LINE_1100_1)+IF(L21="(",-LINE_1200_1,LINE_1200_1))<0,"(","") ->  | M22: =ABS(IF(L13="(",-LINE_1100_1,LINE_1100_1)+IF(L21="(",-LINE_1200_1,LINE_1200_1)) -> 2343678 | O22: =IF((IF(O13="(",-LINE_1100_2,LINE_1100_2)+IF(O21="(",-LINE_1200_2,LINE_1200_2))<0,"(","") ->  | P22: =ABS(IF(O13="(",-LINE_1100_2,LINE_1100_2)+IF(O21="(",-LINE_1200_2,LINE_1200_2)) -> 2346206 | R22: =IF((IF(R13="(",-LINE_1100_3,LINE_1100_3)+IF(R21="(",-LINE_1200_3,LINE_1200_3))<0,"(","") ->  | S22: =ABS(IF(R13="(",-LINE_1100_3,LINE_1100_3)+IF(R21="(",-LINE_1200_3,LINE_1200_3)) -> 2269077 | X22: 1.7 | Y22: Финансовые вложения | Z22: 1170
A23: Камчатский край | H23: 22 | K23: LINE_1300 | L23: =IF((SUMIF(OFFSET(SUM_1300_1,0,-1),"",SUM_1300_1)-SUMIF(OFFSET(SUM_1300_1,0,-1),"(",SUM_1300_1))<0,"(","") ->  | M23: =ABS(SUMIF(OFFSET(SUM_1300_1,0,-1),"",SUM_1300_1)-SUMIF(OFFSET(SUM_1300_1,0,-1),"(",SUM_1300_1)) -> 1647160 | O23: =IF((SUMIF(OFFSET(SUM_1300_2,0,-1),"",SUM_1300_2)-SUMIF(OFFSET(SUM_1300_2,0,-1),"(",SUM_1300_2))<0,"(","") ->  | P23: =ABS(SUMIF(OFFSET(SUM_1300_2,0,-1),"",SUM_1300_2)-SUMIF(OFFSET(SUM_1300_2,0,-1),"(",SUM_1300_2)) -> 1595177 | R23: =IF((SUMIF(OFFSET(SUM_1300_3,0,-1),"",SUM_1300_3)-SUMIF(OFFSET(SUM_1300_3,0,-1),"(",SUM_1300_3))<0,"(","") ->  | S23: =ABS(SUMIF(OFFSET(SUM_1300_3,0,-1),"",SUM_1300_3)-SUMIF(OFFSET(SUM_1300_3,0,-1),"(",SUM_1300_3)) -> 1584224 | X23: 1.8 | Y23: Отложенные налоговые активы | Z23: 1180
A24: Карачаево-Черкесская республика | H24: 23 | K24: LINE_1400 | L24: =IF((SUMIF(OFFSET(SUM_1400_1,0,-1),"",SUM_1400_1)-SUMIF(OFFSET(SUM_1400_1,0,-1),"(",SUM_1400_1))<0,"(","") ->  | M24: =ABS(SUMIF(OFFSET(SUM_1400_1,0,-1),"",SUM_1400_1)-SUMIF(OFFSET(SUM_1400_1,0,-1),"(",SUM_1400_1)) -> 33644 | O24: =IF((SUMIF(OFFSET(SUM_1400_2,0,-1),"",SUM_1400_2)-SUMIF(OFFSET(SUM_1400_2,0,-1),"(",SUM_1400_2))<0,"(","") ->  | P24: =ABS(SUMIF(OFFSET(SUM_1400_2,0,-1),"",SUM_1400_2)-SUMIF(OFFSET(SUM_1400_2,0,-1),"(",SUM_1400_2)) -> 32918 | R24: =IF((SUMIF(OFFSET(SUM_1400_3,0,-1),"",SUM_1400_3)-SUMIF(OFFSET(SUM_1400_3,0,-1),"(",SUM_1400_3))<0,"(","") ->  | S24: =ABS(SUMIF(OFFSET(SUM_1400_3,0,-1),"",SUM_1400_3)-SUMIF(OFFSET(SUM_1400_3,0,-1),"(",SUM_1400_3)) -> 40931 | X24: 1.9 | Y24: Прочие внеоборотные активы | Z24: 1190
A25: Кемеровская область | H25: 24 | K25: LINE_1500 | L25: =IF((SUMIF(OFFSET(SUM_1500_1,0,-1),"",SUM_1500_1)-SUMIF(OFFSET(SUM_1500_1,0,-1),"(",SUM_1500_1))<0,"(","") ->  | M25: =ABS(SUMIF(OFFSET(SUM_1500_1,0,-1),"",SUM_1500_1)-SUMIF(OFFSET(SUM_1500_1,0,-1),"(",SUM_1500_1)) -> 662874 | O25: =IF((SUMIF(OFFSET(SUM_1500_2,0,-1),"",SUM_1500_2)-SUMIF(OFFSET(SUM_1500_2,0,-1),"(",SUM_1500_2))<0,"(","") ->  | P25: =ABS(SUMIF(OFFSET(SUM_1500_2,0,-1),"",SUM_1500_2)-SUMIF(OFFSET(SUM_1500_2,0,-1),"(",SUM_1500_2)) -> 718111 | R25: =IF((SUMIF(OFFSET(SUM_1500_3,0,-1),"",SUM_1500_3)-SUMIF(OFFSET(SUM_1500_3,0,-1),"(",SUM_1500_3))<0,"(","") ->  | S25: =ABS(SUMIF(OFFSET(SUM_1500_3,0,-1),"",SUM_1500_3)-SUMIF(OFFSET(SUM_1500_3,0,-1),"(",SUM_1500_3)) -> 643922 | X25: 1.10 | Y25: ИТОГО по разделу I | Z25: 1100
A26: Кировская область | H26: 25 | K26: LINE_1700 | L26: =IF((IF(L12="(",-LINE_1300_1,LINE_1300_1)+IF(L18="(",-LINE_1400_1,LINE_1400_1)+IF(L25="(",-LINE_1500_1,LINE_1500_1))<0,"(","") ->  | M26: =ABS(IF(L12="(",-LINE_1300_1,LINE_1300_1)+IF(L18="(",-LINE_1400_1,LINE_1400_1)+IF(L25="(",-LINE_1500_1,LINE_1500_1)) -> 2343678 | O26: =IF((IF(O12="(",-LINE_1300_2,LINE_1300_2)+IF(O18="(",-LINE_1400_2,LINE_1400_2)+IF(O25="(",-LINE_1500_2,LINE_1500_2))<0,"(","") ->  | P26: =ABS(IF(O12="(",-LINE_1300_2,LINE_1300_2)+IF(O18="(",-LINE_1400_2,LINE_1400_2)+IF(O25="(",-LINE_1500_2,LINE_1500_2)) -> 2346206 | R26: =IF((IF(R12="(",-LINE_1300_3,LINE_1300_3)+IF(R18="(",-LINE_1400_3,LINE_1400_3)+IF(R25="(",-LINE_1500_3,LINE_1500_3))<0,"(","") ->  | S26: =ABS(IF(R12="(",-LINE_1300_3,LINE_1300_3)+IF(R18="(",-LINE_1400_3,LINE_1400_3)+IF(R25="(",-LINE_1500_3,LINE_1500_3)) -> 2269077
A27: Костромская область | H27: 26
A28: Краснодарский край | H28: 27 | K28: LINE_YELLOW
A29: Красноярский край | H29: 28
A30: Курганская область | H30: 29 | K30: LINE_YELLOW_ALL
A31: Курская область | H31: 30
A32: Ленинградская область | H32: 31
A33: Липецкая область
A34: Магаданская область
A35: Московская область
A36: Мурманская область
A37: Ненецкий автономный округ
A38: Нижегородская область
A39: Новгородская область
A40: Новосибирская область
A41: Омская область
A42: Оренбургская область
A43: Орловская область
A44: Пензенская область
A45: Пермский край
A46: Приморский край
A47: Псковская область
A48: Республика Адыгея
A49: Республика Алтай
A50: Республика Башкортостан
A51: Республика Бурятия
A52: Республика Дагестан
A53: Республика Ингушетия
A54: Республика Калмыкия
A55: Республика Карелия
A56: Республика Коми
A57: Республика Марий Эл
A58: Республика Мордовия
A59: Республика Саха (Якутия)
A60: Республика Северная Осетия-Алания
A61: Республика Татарстан
A62: Республика Тыва
A63: Республика Хакасия
A64: Ростовская область
A65: Рязанская область
A66: Самарская область
A67: Саратовская область
A68: Сахалинская область
A69: Свердловская область
A70: Смоленская область
A71: Ставропольский край
A72: Тамбовская область
A73: Тверская область
A74: Томская область
A75: Тульская область
A76: Тюменская область
A77: Удмуртская республика
A78: Ульяновская область
A79: Хабаровский край
A80: Ханты-Мансийский автономный округ
A81: Челябинская область
A82: Чеченская республика
A83: Чувашская республика
A84: Чукотский автономный округ
A85: Ямало-Ненецкий автономный округ
A86: Ярославская область

Sheet REESTR_ORG (hidden)
A1: № | B1: МР | C1: МО | D1: МО ОКТМО | E1: ОРГАНИЗАЦИЯ | F1: ИНН | G1: КПП | H1: ВИД ДЕЯТЕЛЬНОСТИ

Sheet REESTR_FILTERED (hidden)
A1: № | B1: МР | C1: МО | D1: МО ОКТМО | E1: ОРГАНИЗАЦИЯ | F1: ИНН | G1: КПП | H1: ВИД ДЕЯТЕЛЬНОСТИ

Sheet REESTR_MO (hidden)
A1: МР | B1: МО | C1: МО_ОКТМО | D1: МР | E1: ИМЯ ДИАПАЗОНА
A2: Александро-Невский муниципальный район | B2: Александро-Невский муниципальный район | C2: 61620000 | D2: Александро-Невский муниципальный район | E2: MO_LIST_2
A3: Александро-Невский муниципальный район | B3: Александро-Невское | C3: 61620151 | D3: Город Касимов | E3: MO_LIST_3
A4: Александро-Невский муниципальный район | B4: Благовское | C4: 61620405 | D4: Город Рязань | E4: MO_LIST_4
A5: Александро-Невский муниципальный район | B5: Борисовское | C5: 61620410 | D5: Город Сасово | E5: MO_LIST_5
A6: Александро-Невский муниципальный район | B6: Бурминское | C6: 61620420 | D6: Город Скопин | E6: MO_LIST_6
A7: Александро-Невский муниципальный район | B7: Каширинское | C7: 61620450 | D7: Ермишинский муниципальный район | E7: MO_LIST_7
A8: Александро-Невский муниципальный район | B8: Ленинское | C8: 61620435 | D8: Захаровский муниципальный район | E8: MO_LIST_8
A9: Александро-Невский муниципальный район | B9: Нижнеякимецкое | C9: 61620445 | D9: Кадомский муниципальный район | E9: MO_LIST_9
A10: Александро-Невский муниципальный район | B10: Просеченское | C10: 61620460 | D10: Касимовский муниципальный район | E10: MO_LIST_10
A11: Город Касимов | B11: Город Касимов | C11: 61705000 | D11: Клепиковский муниципальный район | E11: MO_LIST_11
A12: Город Рязань | B12: Город Рязань | C12: 61701000 | D12: Кораблинский муниципальный район | E12: MO_LIST_12
A13: Город Сасово | B13: Город Сасово | C13: 61710000 | D13: Милославский муниципальный район | E13: MO_LIST_13
A14: Город Скопин | B14: Город Скопин | C14: 61715000 | D14: Михайловский муниципальный район | E14: MO_LIST_14
A15: Ермишинский муниципальный район | B15: Азеевское | C15: 61602405 | D15: Пителинский муниципальный район | E15: MO_LIST_15
A16: Ермишинский муниципальный район | B16: Ермишинский муниципальный район | C16: 61602000 | D16: Пронский муниципальный район | E16: MO_LIST_16
A17: Ермишинский муниципальный район | B17: Ермишинское | C17: 61602151 | D17: Путятинский муниципальный район | E17: MO_LIST_17
A18: Ермишинский муниципальный район | B18: Мердушинское | C18: 61602425 | D18: Рыбновский муниципальный район | E18: MO_LIST_18
A19: Ермишинский муниципальный район | B19: Надежкинское | C19: 61602430 | D19: Ряжский муниципальный район | E19: MO_LIST_19
A20: Ермишинский муниципальный район | B20: Нарминское | C20: 61602435 | D20: Рязанский муниципальный район | E20: MO_LIST_20
A21: Ермишинский муниципальный район | B21: Савватемское | C21: 61602440 | D21: Сапожковский муниципальный район | E21: MO_LIST_21
A22: Захаровский муниципальный район | B22: Безлыченское | C22: 61604412 | D22: Сараевский муниципальный район | E22: MO_LIST_22
A23: Захаровский муниципальный район | B23: Большекоровинское | C23: 61604415 | D23: Сасовский муниципальный район | E23: MO_LIST_23
A24: Захаровский муниципальный район | B24: Добро-Пчельское | C24: 61604430 | D24: Скопинский муниципальный район | E24: MO_LIST_24
A25: Захаровский муниципальный район | B25: Елинское | C25: 61604432 | D25: Спасский муниципальный район | E25: MO_LIST_25
A26: Захаровский муниципальный район | B26: Захаровский муниципальный район | C26: 61604000 | D26: Старожиловский муниципальный район | E26: MO_LIST_26
A27: Захаровский муниципальный район | B27: Захаровское | C27: 61604440 | D27: Ухоловский муниципальный район | E27: MO_LIST_27
A28: Захаровский муниципальный район | B28: Плахинское | C28: 61604465 | D28: Чучковский муниципальный район | E28: MO_LIST_28
A29: Захаровский муниципальный район | B29: Сменовское | C29: 61604425 | D29: Шацкий муниципальный район | E29: MO_LIST_29
A30: Кадомский муниципальный район | B30: Восходское | C30: 61606405 | D30: Шиловский муниципальный район | E30: MO_LIST_30
A31: Кадомский муниципальный район | B31: Енкаевское | C31: 61606410
A32: Кадомский муниципальный район | B32: Кадомский муниципальный район | C32: 61606000
A33: Кадомский муниципальный район | B33: Кадомское | C33: 61606151
A34: Кадомский муниципальный район | B34: Котелинское | C34: 61606420
A35: Кадомский муниципальный район | B35: Кущапинское | C35: 61606430
A36: Касимовский муниципальный район | B36: Ардабьевское | C36: 61608403
A37: Касимовский муниципальный район | B37: Ахматовское | C37: 61608406
A38: Касимовский муниципальный район | B38: Балушево-Починковское | C38: 61608409
A39: Касимовский муниципальный район | B39: Булгаковское | C39: 61608439
A40: Касимовский муниципальный район | B40: Гиблицкое | C40: 61608418
A41: Касимовский муниципальный район | B41: Гусевское | C41: 61608154
A42: Касимовский муниципальный район | B42: Дмитриевское | C42: 61608421
A43: Касимовский муниципальный район | B43: Елатомское | C43: 61608156
A44: Касимовский муниципальный район | B44: Ермоловское | C44: 61608424
A45: Касимовский муниципальный район | B45: Ибердусское | C45: 61608430
A46: Касимовский муниципальный район | B46: Касимовский муниципальный район | C46: 61608000
A47: Касимовский муниципальный район | B47: Китовское | C47: 61608433
A48: Касимовский муниципальный район | B48: Клетинское | C48: 61608434
A49: Касимовский муниципальный район | B49: Которовское | C49: 61608442
A50: Касимовский муниципальный район | B50: Крутоярское | C50: 61608453
A51: Касимовский муниципальный район | B51: Лашманское | C51: 61608454
A52: Касимовский муниципальный район | B52: Лощининское | C52: 61608471
A53: Касимовский муниципальный район | B53: Новодеревенское | C53: 61608456
A54: Касимовский муниципальный район | B54: Овчинниковское | C54: 61608459
A55: Касимовский муниципальный район | B55: Первинское | C55: 61608462
A56: Касимовский муниципальный район | B56: Погостинское | C56: 61608465
A57: Касимовский муниципальный район | B57: Савостьяновское | C57: 61608468
A58: Касимовский муниципальный район | B58: Сынтульское | C58: 61608160
A59: Касимовский муниципальный район | B59: Токаревское | C59: 61608474
A60: Касимовский муниципальный район | B60: Торбаевское | C60: 61608412
A61: Касимовский муниципальный район | B61: Шостьинское | C61: 61608480
A62: Клепиковский муниципальный район | B62: Алексеевское | C62: 61610403
A63: Клепиковский муниципальный район | B63: Болоньское | C63: 61610415
A64: Клепиковский муниципальный район | B64: Бусаевское | C64: 61610418
A65: Клепиковский муниципальный район | B65: Екшурское | C65: 61610451
A66: Клепиковский муниципальный район | B66: Клепиковский муниципальный район | C66: 61610000
A67: Клепиковский муниципальный район | B67: Колесниковское | C67: 61610448
A68: Клепиковский муниципальный район | B68: Криушинское | C68: 61610454
A69: Клепиковский муниципальный район | B69: Макеевское | C69: 61610460
A70: Клепиковский муниципальный район | B70: Малаховское | C70: 61610463
A71: Клепиковский муниципальный район | B71: Молькинское | C71: 61610475
A72: Клепиковский муниципальный район | B72: Ненашкинское | C72: 61610487
A73: Клепиковский муниципальный район | B73: Оськинское | C73: 61610472
A74: Клепиковский муниципальный район | B74: Спас-Клепиковское | C74: 61610101
A75: Клепиковский муниципальный район | B75: Тумское | C75: 61610154
A76: Клепиковский муниципальный район | B76: Тюковское | C76: 61610484
A77: Клепиковский муниципальный район | B77: Уткинское | C77: 61610421
A78: Кораблинский муниципальный район | B78: Бобровинское | C78: 61612408
A79: Кораблинский муниципальный район | B79: Кипчаковское | C79: 61612424
A80: Кораблинский муниципальный район | B80: Ключанское | C80: 61612428
A81: Кораблинский муниципальный район | B81: Ковалинское | C81: 61612432
A82: Кораблинский муниципальный район | B82: Кораблинский муниципальный район | C82: 61612000
A83: Кораблинский муниципальный район | B83: Кораблинское | C83: 61612101
A84: Кораблинский муниципальный район | B84: Молвинослободское | C84: 61612456
A85: Кораблинский муниципальный район | B85: Незнановское | C85: 61612448
A86: Кораблинский муниципальный район | B86: Пехлецкое | C86: 61612460
A87: Кораблинский муниципальный район | B87: Пустотинское | C87: 61612464
A88: Кораблинский муниципальный район | B88: Яблоневское | C88: 61612484
A89: Милославский муниципальный район | B89: Богородицкое | C89: 61615408
A90: Милославский муниципальный район | B90: Большеподовечинское | C90: 61615412
A91: Милославский муниципальный район | B91: Горняцкое | C91: 61615422
A92: Милославский муниципальный район | B92: Кочуровское | C92: 61615428
A93: Милославский муниципальный район | B93: Липяговское | C93: 61615432
A94: Милославский муниципальный район | B94: Милославский муниципальный район | C94: 61615000
A95: Милославский муниципальный район | B95: Павловское | C95: 61615456
A96: Милославский муниципальный район | B96: Центральное | C96: 61615160
A97: Милославский муниципальный район | B97: Чернавское | C97: 61615472
A98: Милославский муниципальный район | B98: городское поселение Милославское | C98: 61615151
A99: Милославский муниципальный район | B99: сельское поселение Милославское | C99: 61615444
A100: Михайловский муниципальный район | B100: Виленское | C100: 61617406
A101: Михайловский муниципальный район | B101: Голдинское | C101: 61617412
A102: Михайловский муниципальный район | B102: Горностаевское | C102: 61617415
A103: Михайловский муниципальный район | B103: Грязновское | C103: 61617418
A104: Михайловский муниципальный район | B104: Жмуровское | C104: 61617421
A105: Михайловский муниципальный район | B105: Ильичевское | C105: 61617476
A106: Михайловский муниципальный район | B106: Каморинское | C106: 61617433
A107: Михайловский муниципальный район | B107: Красновское | C107: 61617439
A108: Михайловский муниципальный район | B108: Михайловский муниципальный район | C108: 61617000
A109: Михайловский муниципальный район | B109: Михайловское | C109: 61617101
A110: Михайловский муниципальный район | B110: Новопанское | C110: 61617448
A111: Михайловский муниципальный район | B111: Октябрьское | C111: 61617154
A112: Михайловский муниципальный район | B112: Печерниковское | C112: 61617451
A113: Михайловский муниципальный район | B113: Поярковское | C113: 61617457
A114: Михайловский муниципальный район | B114: Рачатниковское | C114: 61617460
A115: Михайловский муниципальный район | B115: Слободское | C115: 61617467
A116: Михайловский муниципальный район | B116: Стрелецко-Высельское | C116: 61617470
A117: Михайловский муниципальный район | B117: Трепольское | C117: 61617473
A118: Михайловский муниципальный район | B118: Чуриковское | C118: 61617485
A119: Михайловский муниципальный район | B119: Щетининское | C119: 61617491
A120: Пителинский муниципальный район | B120: Ермо-Николаевское | C120: 61623420
A121: Пителинский муниципальный район | B121: Нестеровское | C121: 61623425
A122: Пителинский муниципальный район | B122: Пеньковское | C122: 61623435
A123: Пителинский муниципальный район | B123: Пителинский муниципальный район | C123: 61623000
A124: Пителинский муниципальный район | B124: Пителинское | C124: 61623151
A125: Пителинский муниципальный район | B125: Потапьевское | C125: 61623450
A126: Пронский муниципальный район | B126: Малинищинское | C126: 61625435
A127: Пронский муниципальный район | B127: Мамоновское | C127: 61625440
A128: Пронский муниципальный район | B128: Новомичуринское | C128: 61625114
A129: Пронский муниципальный район | B129: Октябрьское | C129: 61625445
A130: Пронский муниципальный район | B130: Орловское | C130: 61625450
A131: Пронский муниципальный район | B131: Погореловское | C131: 61625455
A132: Пронский муниципальный район | B132: Пронский муниципальный район | C132: 61625000
A133: Пронский муниципальный район | B133: Пронское | C133: 61625151
A134: Пронский муниципальный район | B134: Тырновское | C134: 61625405
A135: Путятинский муниципальный район | B135: Береговское | C135: 61626406
A136: Путятинский муниципальный район | B136: Большеекатериновское | C136: 61626403
A137: Путятинский муниципальный район | B137: Карабухинское | C137: 61626424
A138: Путятинский муниципальный район | B138: Песочинское | C138: 61626432
A139: Путятинский муниципальный район | B139: Путятинский муниципальный район | C139: 61626000
A140: Путятинский муниципальный район | B140: Путятинское | C140: 61626436
A141: Путятинский муниципальный район | B141: Строевское | C141: 61626412
A142: Рыбновский муниципальный район | B142: Алешинское | C142: 61627404
A143: Рыбновский муниципальный район | B143: Баграмовское | C143: 61627406
A144: Рыбновский муниципальный район | B144: Батуринское | C144: 61627408
A145: Рыбновский муниципальный район | B145: Вакинское | C145: 61627416
A146: Рыбновский муниципальный район | B146: Глебковское | C146: 61627418
A147: Рыбновский муниципальный район | B147: Истобниковское | C147: 61627424
A148: Рыбновский муниципальный район | B148: Кузьминское | C148: 61627436
A149: Рыбновский муниципальный район | B149: Пионерское | C149: 61627476
A150: Рыбновский муниципальный район | B150: Пощуповское | C150: 61627456
A151: Рыбновский муниципальный район | B151: Рыбновский муниципальный район | C151: 61627000
A152: Рыбновский муниципальный район | B152: Рыбновское | C152: 61627101
A153: Рыбновский муниципальный район | B153: Селецкое | C153: 61627460
A154: Рыбновский муниципальный район | B154: Ходынинское | C154: 61627472
A155: Рыбновский муниципальный район | B155: Чурилковское | C155: 61627464
A156: Ряжский муниципальный район | B156: Алешинское | C156: 61630405
A157: Ряжский муниципальный район | B157: Дегтянское | C157: 61630415
A158: Ряжский муниципальный район | B158: Журавинское | C158: 61630420
A159: Ряжский муниципальный район | B159: Петровское | C159: 61630450
A160: Ряжский муниципальный район | B160: Поплевинское | C160: 61630460
A161: Ряжский муниципальный район | B161: Ряжский муниципальный район | C161: 61630000
A162: Ряжский муниципальный район | B162: Ряжское | C162: 61630101
A163: Рязанский муниципальный район | B163: Варсковское | C163: 61634402
A164: Рязанский муниципальный район | B164: Высоковское | C164: 61634409
A165: Рязанский муниципальный район | B165: Вышгородское | C165: 61634412
A166: Рязанский муниципальный район | B166: Вышетравинское | C166: 61634415
A167: Рязанский муниципальный район | B167: Дубровическое | C167: 61634427
A168: Рязанский муниципальный район | B168: Дядьковское | C168: 61634430
A169: Рязанский муниципальный район | B169: Екимовское | C169: 61634433
A170: Рязанский муниципальный район | B170: Заборьевское | C170: 61634436
A171: Рязанский муниципальный район | B171: Заокское | C171: 61634439
A172: Рязанский муниципальный район | B172: Искровское | C172: 61634485
A173: Рязанский муниципальный район | B173: Кораблинское | C173: 61634451
A174: Рязанский муниципальный район | B174: Листвянское | C174: 61634457
A175: Рязанский муниципальный район | B175: Льговское | C175: 61634460
A176: Рязанский муниципальный район | B176: Мурминское | C176: 61634401
A177: Рязанский муниципальный район | B177: Окское | C177: 61634475
A178: Рязанский муниципальный район | B178: Подвязьевское | C178: 61634478
A179: Рязанский муниципальный район | B179: Полянское | C179: 61634483
A180: Рязанский муниципальный район | B180: Ровновское | C180: 61634490
A181: Рязанский муниципальный район | B181: Рязанский муниципальный район | C181: 61634000
A182: Рязанский муниципальный район | B182: Семеновское | C182: 61634495
A183: Рязанский муниципальный район | B183: Турлатовское | C183: 61634496
A184: Рязанский муниципальный район | B184: Тюшевское | C184: 61634498
A185: Сапожковский муниципальный район | B185: Березниковское | C185: 61637435
A186: Сапожковский муниципальный район | B186: Канинское | C186: 61637410
A187: Сапожковский муниципальный район | B187: Михеевское | C187: 61637405
A188: Сапожковский муниципальный район | B188: Морозово-Борковское | C188: 61637430
A189: Сапожковский муниципальный район | B189: Сапожковский муниципальный район | C189: 61637000
A190: Сапожковский муниципальный район | B190: Сапожковское | C190: 61637151
A191: Сараевский муниципальный район | B191: Алексеевское | C191: 61640403
A192: Сараевский муниципальный район | B192: Борецкое | C192: 61640412
A193: Сараевский муниципальный район | B193: Бычковское | C193: 61640415
A194: Сараевский муниципальный район | B194: Высоковское | C194: 61640424
A195: Сараевский муниципальный район | B195: Желобовское | C195: 61640430
A196: Сараевский муниципальный район | B196: Кривское | C196: 61640436
A197: Сараевский муниципальный район | B197: Можарское | C197: 61640442
A198: Сараевский муниципальный район | B198: Муравлянское | C198: 61640448
A199: Сараевский муниципальный район | B199: Напольновское | C199: 61640451
A200: Сараевский муниципальный район | B200: Новобокинское | C200: 61640454
... 108 more rows

Sheet modHyperlink (hidden)

Sheet modChange (hidden)

Sheet modPROV (hidden)

Sheet modTitleSheetHeaders (hidden)

Sheet modServiceModule (hidden)

Sheet modCommandButton (hidden)

Sheet modReestr (hidden)

Sheet modClassifierValidate (hidden)

Sheet modInfo (hidden)

Sheet modfrmReestr (hidden)

Sheet modfrmDateChoose (hidden)

Sheet modDblClick (hidden)

Sheet modUpdTemplMain (hidden)

Sheet modRegionSelectSub (hidden)

Sheet modThisWorkbook (hidden)

Sheet modReestrMO (hidden)

Sheet modSheetMain01 (hidden)

Sheet modSheetMain02 (hidden)

Sheet modSheetMain03 (hidden)

Sheet modSheetMain04 (hidden)

Sheet modSheetMain05 (hidden)

Sheet modSheetMain06 (hidden)

Sheet Паспорт (hidden)
AV1: Код диапазона: | AW1: Название диапазона: | AX1: Сфера регулирования: | AY1: Подсфера: | AZ1: Тип информации в шаблоне: | BA1: Состояние шаблона: | BB1: Периодичность: | BC1: "Геотип" шаблона: | BD1: Тип шаблона: | BE1: Заказчик:
AV2: ps_sr | AW2: Сфера регулирования: | AX2: Не определено | AY2: Не определено | AZ2: Не определено | BA2: Не определено | BB2: Не определено | BC2: Не определено | BD2: Не определено | BE2: Не определено
AV3: ps_ti | AW3: Тип информации в шаблоне: | AX3: NETS | AY3: водоотведение - очистка | AZ3: Статистический | BA3: Проект | BB3: Единовременный | BC3: Региональный шаблон | BD3: Атомарный | BE3: РЭК
D4: Паспорт к шаблону | AV4: ps_ssh | AW4: Состояние шаблона: | AX4: Аэропорты | AY4: водоотведение - передача | AZ4: Расчетный | BA4: Утвержден | BB4: Ежемесячный | BC4: Муниципальный шаблон | BD4: Сводный | BE4: ФСТ
AV5: ps_p | AW5: Периодичность: | AX5: Газ | AY5: водоотведение - прием | AZ5: Обосновывающие материалы | BB5: Ежеквартальный | BC5: Шаблон от организации | BE5: Экспертная организация
D6: 1. Общие сведения | AV6: ps_geo | AW6: "Геотип" шаблона: | AX6: Железные дороги | AY6: водоснабжение - очистка | BB6: Ежегодный
D7: 1.1 | E7: Код | AV7: ps_tsh | AW7: Тип шаблона: | AX7: ЖКХ | AY7: водоснабжение - передача
D8: 1.2 | E8: Краткое наименование | AV8: ps_psr | AW8: Подсфера: | AX8: Медицина | AY8: водоснабжение - подъем
D9: 1.3 | E9: Полное наименование | AV9: ps_z | AW9: Заказчик: | AX9: Порты | AY9: выработка ТС
D10: 1.4 | E10: Сфера регулирования | AX10: Связь | AY10: выработка ТС в режиме комбинированной выработки
D11: 1.5 | E11: Подсфера | AX11: Транспорт | AY11: выработка электрической энергии
D12: 1.6 | E12: Состояние шаблона (Утвержден/Проект) | AX12: Электроэнергетика | AY12: выработка+передача+сбыт ТС
D13: 1.7 | E13: Заказчик | AY13: передача ТС
D14: 1.8 | E14: Отчитывается | AY14: передача ЭЭ
D15: 1.9 | E15: Тип шаблона | G15: Если шаблон сводный, необходимо указать код атомарного шаблона для него: | AY15: сбыт ТС
D16: 1.10 | E16: Текущая версия | AY16: сбыт ЭЭ
AY17: ТБО
D18: 2. Организационные
D19: 2.1 | E19: Тип информации в шаблоне
D20: 2.2 | E20: Ответственный регулятор (от заказчика)
D21: 2.3 | E21: Ответственный специалист (от СМА)
D22: 2.4 | E22: Ответственный программист (от СМА)
D23: 2.5 | E23: Ответственные за сбор данных (от СМА)
D24: 2.6 | E24: Ответственные за сбор данных (от заказчика)
D26: 3. Законодательство (методики, приказы, постановления ...)
C27: first | D27: 3.1 | E27: Документ1
C28: end | D28: Добавить документ
D30: 4. Периодичность
D31: 4.1 | E31: Периодичность
E32: Мониторинги(прошедшие и плановые) | F32: Дата начала | G32: Дата окончания | H32: Согласно (приказ, постановление, письмо)
C33: first | D33: 4.2.1 | E33: Мониторинг1
C34: end | D34: Добавить мониторинг
D36: 5. Состав шаблона
E37: Лист | F37: Последняя дата изменений эскиза | G37: Состояние листа | H37: Наименование витрины для листа | I37: Комментарии
C38: first | D38: 5.1.1
C39: Удалить | D39: 5.1.2
C40: Удалить | D40: 5.1.3
C41: Удалить | D41: 5.1.4
C42: Удалить | D42: 5.1.5
C43: Удалить | D43: 5.1.6
C44: Удалить | D44: 5.1.7
C45: Удалить | D45: 5.1.8
C46: Удалить | D46: 5.1.9
C47: Удалить | D47: 5.1.10
C48: Удалить | D48: 5.1.11
C49: Удалить | D49: 5.1.12
C50: Удалить | D50: 5.1.13
C51: Удалить | D51: 5.1.14
C52: Удалить | D52: 5.1.15
C53: Удалить | D53: 5.1.16
C54: Удалить | D54: 5.1.17
C55: end | D55: Добавить лист
D57: 6. Сроки и даты
D58: 6.1.1 | E58: Даты получения последних эскизов, от экспертов
D59: 6.1.2 | E59: Даты отправки шаблона на проверку
D60: 6.1.3 | E60: Предполагаемый срок сдачи шаблона в эксплуатацию
D62: 7. Версии
E63: Версия | F63: Отличия от предыдущей
C64: first | D64: 7.1
C65: end | D65: Добавить версию
D67: 8. Дополнительно
D68: 8.1 | E68: Аналогичные("похожие") шаблоны
D69: 8.2 | E69: Особенности шаблона
D70: 8.3 | E70: Модуль на основе данного шаблона
D71: 8.4 | E71: Процедуры загрузки данных в витрины
